fUSD/lending_fUSD_20260418
["ID","MTS","AMOUNT","RATE_DAILY","PERIOD"]
[420731866,1776509441326,-500.0,8.696e-05,2]
[420731867,1776509441336,-500.0,8.696e-05,2]
[420731868,1776509441345,-500.0,8.696e-05,2]
[420731869,1776509441354,-500.0,8.696e-05,2]
[420731870,1776509441364,-573.76791879,8.696e-05,2]
[420731871,1776509441373,-500.0,8.696e-05,2]
[420731872,1776509441383,-500.0,8.696e-05,2]
[420731873,1776509441393,-500.0,8.696e-05,2]
[420731874,1776509441402,-500.0,8.696e-05,2]
[420731875,1776509441412,-500.0,8.696e-05,2]
[420731876,1776509441422,-500.0,8.696e-05,2]
[420731877,1776509441432,-500.0,8.696e-05,2]
[420731878,1776509441441,-500.0,8.696e-05,2]
[420731879,1776509441451,-500.0,8.696e-05,2]
[420731880,1776509441460,-500.0,8.696e-05,2]
[420731881,1776509441470,-500.0,8.696e-05,2]
[420731882,1776509441479,-500.0,8.696e-05,2]
[420731883,1776509441489,-500.0,8.696e-05,2]
[420731884,1776509441498,-500.0,8.696e-05,2]
[420731885,1776509441508,-500.0,8.696e-05,2]
[420731886,1776509441517,-500.0,8.696e-05,2]
[420731887,1776509441527,-500.0,8.696e-05,2]
[420731888,1776509441537,-500.0,8.696e-05,2]
[420731889,1776509441546,-500.0,8.696e-05,2]
[420731890,1776509441555,-500.0,8.696e-05,2]
[420731891,1776509441565,-500.0,8.696e-05,2]
[420731892,1776509441575,-500.0,8.696e-05,2]
[420731893,1776509441584,-500.0,8.696e-05,2]
[420731894,1776509441594,-500.0,8.696e-05,2]
[420731895,1776509441609,-500.0,8.696e-05,2]
[420731896,1776509441620,-450.0,8.696e-05,2]
[420731897,1776509441631,-500.0,8.696e-05,2]
[420731898,1776509441643,-500.0,8.696e-05,2]
[420731899,1776509441653,-500.0,8.696e-05,2]
[420731900,1776509441663,-117919.56358571,8.697e-05,2]
[420731901,1776509441678,-26901.15158063,8.697e-05,2]
[420731902,1776509441691,-28064.82898411,8.697e-05,2]
[420731903,1776509441704,-14074.93523003,8.697e-05,2]
[420731904,1776509441717,-253.0338,8.697e-05,2]
[420731905,1776509441729,-669.57770617,8.697e-05,2]
[420731906,1776509441784,-524.0,8.697e-05,2]
[420731907,1776509442779,-453.15707113,8.697e-05,2]
[420731909,1776509442791,-1137.95623793,8.697e-05,2]
[420731911,1776509442803,-3319.34564539,8.697e-05,2]
[420731915,1776509442851,-7715.02992362,8.697e-05,2]
[420731916,1776509442900,-500.0801925,8.697e-05,2]
[420731917,1776509442934,-3549.4941997,8.697e-05,2]
[420731918,1776509442976,-23569.03744308,8.697e-05,2]
[420731919,1776509442986,-150.0,8.697e-05,2]
[420731920,1776509442999,-2500.0,8.698e-05,2]
[420731921,1776509443008,-400.0,8.7e-05,3]
[420731922,1776509443018,-420.0,8.705e-05,2]
[420731923,1776509443027,-420.0,8.705e-05,2]
[420731924,1776509443037,-150.0,8.707e-05,2]
[420731925,1776509443046,-150.0,8.715e-05,2]
[420731926,1776509443056,-150.0,8.72e-05,21]
[420731927,1776509443065,-150.0,8.721e-05,2]
[420731928,1776509443075,-150.0,8.736e-05,2]
[420731929,1776509443084,-171.85104158,8.773e-05,2]
[420731930,1776509443095,-500.0,8.773e-05,2]
[420731931,1776509443104,-500.0,8.773e-05,2]
[420731932,1776509443115,-551.63256287,8.773e-05,2]
[420731933,1776509443124,-160.06722673,8.773e-05,2]
[420731934,1776509443134,-242.52360913,8.795e-05,2]
[420731935,1776509443144,-150.0,8.795e-05,2]
[420731936,1776509443153,-158.85329972,8.795e-05,2]
[420731937,1776509443164,-150.0,8.795e-05,2]
[420731938,1776509443174,-155.26000303,8.795e-05,2]
[420731939,1776509443184,-152.53389495,8.795e-05,2]
[420731940,1776509443194,-150.0,8.795e-05,2]
[420731941,1776509443203,-150.0,8.795e-05,2]
[420731942,1776509443213,-151.0,8.795e-05,2]
[420731943,1776509443224,-573.66,8.797e-05,2]
[420731944,1776509443235,-150.09,8.797e-05,2]
[420731945,1776509443244,-2265.61,8.797e-05,2]
[420731946,1776509443255,-250.0,8.797e-05,2]
[420731947,1776509443265,-900.0,8.8e-05,3]
[420731948,1776509443274,-1400.0,8.9e-05,3]
[420731949,1776509443285,-77082.65,8.998e-05,2]
[420731950,1776509443296,-1900.0,9e-05,3]
[420731951,1776509443307,-166.66,9.002e-05,2]
[420731952,1776509443317,-573.66,9.071e-05,2]
[420731954,1776509443326,-255.0,9.137e-05,2]
[420731956,1776509443336,-1000.0,9.221e-05,2]
[420731958,1776509443346,-1000.0,9.221e-05,2]
[420731959,1776509443356,-312.24786116,9.221e-05,2]
[420731960,1776509443366,-1093.2952925,9.321e-05,2]
[420731961,1776509443376,-573.66,9.345e-05,2]
[420731962,1776509443386,-1600.0,9.377e-05,2]
[420731963,1776509443396,-152.0,9.396e-05,2]
[420731964,1776509443406,-408.0,9.415e-05,2]
[420731965,1776509443416,-478.0,9.427e-05,2]
[420731966,1776509443425,-578.20924308,9.531e-05,2]
[420731967,1776509443435,-500.0,9.531e-05,2]
[420731968,1776509443452,-695.39793187,9.531e-05,2]
[420731969,1776509443463,-200.0,9.531e-05,2]
[420731970,1776509443474,-1377.42282659,9.531e-05,2]
[420731971,1776509443484,-9211.34798985,9.531e-05,2]
[420731972,1776509443494,-151.0,9.531e-05,2]
[420731973,1776509443504,-201.93286099,9.531e-05,2]
[420731974,1776509443514,-743.50770149,9.531e-05,2]
[420731975,1776509443524,-2000.0,9.531e-05,2]
[420731976,1776509443533,-2000.0,9.531e-05,2]
[420731977,1776509443543,-174.61919141,9.531e-05,2]
[420731978,1776509443553,-151.0,9.531e-05,2]
[420731979,1776509443562,-618.20119968,9.531e-05,2]
[420731980,1776509443573,-152.0,9.531e-05,2]
[420731981,1776509443583,-225.60716926,9.531e-05,2]
[420731982,1776509443593,-227.34163157,9.531e-05,2]
[420731983,1776509443603,-235.75327194,9.531e-05,2]
[420731984,1776509443613,-244.476143,9.531e-05,2]
[420731985,1776509443623,-253.52176029,9.531e-05,2]
[420731986,1776509443633,-262.90206542,9.531e-05,2]
[420731987,1776509443644,-201.93286099,9.531e-05,2]
[420731988,1776509443656,-272.62944185,9.531e-05,2]
[420731989,1776509443667,-348.55234987,9.531e-05,2]
[420731990,1776509443676,-279.9045709,9.531e-05,2]
[420731991,1776509443686,-151.0,9.531e-05,2]
[420731992,1776509443697,-587.0,9.576e-05,2]
[420731993,1776509443707,-587.0,9.576e-05,2]
[420731994,1776509443717,-500.0,9.583e-05,2]
[420731995,1776509443727,-301.27631775,9.583e-05,2]
[420731996,1776509443738,-500.0,9.583e-05,2]
[420731997,1776509443748,-271.31859674,9.583e-05,2]
[420731998,1776509443758,-500.0,9.583e-05,2]
[420731999,1776509443769,-500.0,9.583e-05,2]
[420732000,1776509443780,-500.0,9.583e-05,2]
[420732001,1776509443790,-419.90721182,9.583e-05,2]
[420732002,1776509443800,-500.0,9.583e-05,2]
[420732003,1776509443810,-254.089672,9.584e-05,2]
[420732004,1776509443820,-254.089672,9.584e-05,2]
[420732005,1776509443830,-254.089672,9.584e-05,2]
[420732006,1776509443840,-254.089672,9.584e-05,2]
[420732007,1776509443850,-500.0,9.586e-05,2]
[420732008,1776509443859,-340.81987562,9.586e-05,2]
[420732009,1776509443871,-151.0,9.586e-05,2]
[420732010,1776509443880,-573.66,9.619e-05,2]
[420732011,1776509443890,-500.0,9.641e-05,2]
[420732012,1776509443900,-151.0,9.641e-05,2]
[420732013,1776509443910,-151.0,9.648e-05,2]
[420732014,1776509443920,-151.0,9.649e-05,2]
[420732015,1776509443930,-369.719989,9.649e-05,2]
[420732016,1776509443940,-369.719989,9.649e-05,2]
[420732017,1776509443950,-369.719989,9.649e-05,2]
[420732018,1776509443960,-369.719989,9.649e-05,2]
[420732019,1776509443969,-500.0,9.696e-05,2]
[420732020,1776509443979,-151.0,9.696e-05,2]
[420732021,1776509443988,-500.0,9.751e-05,2]
[420732022,1776509443998,-151.0,9.751e-05,2]
[420732023,1776509444008,-973.997347,9.8e-05,2]
[420732024,1776509444019,-1074.720566,9.8e-05,2]
[420732025,1776509444029,-260.115015,9.8e-05,2]
[420732026,1776509444038,-2656.087309,9.8e-05,2]
[420732027,1776509444048,-209.698472,9.8e-05,2]
[420732028,1776509444057,-500.0,9.806e-05,2]
[420732029,1776509444067,-151.0,9.806e-05,2]
[420732030,1776509444076,-1048.659,9.811e-05,2]
[420732031,1776509444087,-622.0,9.811e-05,2]
[420732032,1776509444096,-3528.0,9.811e-05,2]
[420732033,1776509444106,-939.724,9.811e-05,2]
[420732034,1776509444115,-1233.438,9.811e-05,2]
[420732035,1776509444125,-150.164,9.811e-05,2]
[420732036,1776509444134,-217.0,9.811e-05,2]
[420732037,1776509444143,-273.0,9.811e-05,2]
[420732038,1776509444153,-200.0,9.811e-05,2]
[420732039,1776509444162,-416.0,9.811e-05,2]
[420732040,1776509444171,-250.0,9.811e-05,2]
[420732041,1776509444180,-204.027,9.811e-05,2]
[420732042,1776509444190,-150.0,9.811e-05,2]
[420732043,1776509444200,-150.406,9.811e-05,2]
[420732044,1776509444681,-2473.0,9.811e-05,2]
[420732045,1776509444694,-150.305,9.811e-05,2]
[420732046,1776509444704,-500.0,9.861e-05,2]
[420732047,1776509444713,-151.0,9.861e-05,2]
[420732048,1776509444723,-573.66,9.893e-05,2]
[420732049,1776509444732,-500.0,9.916e-05,2]
[420732050,1776509444741,-151.0,9.916e-05,2]
[420732051,1776509444750,-500.0,9.971e-05,2]
[420732052,1776509444759,-151.0,9.971e-05,2]
[420732053,1776509444768,-153.13974284,0.0001,2]
[420732054,1776509444778,-158.20177986,0.0001,2]
[420732055,1776509444787,-84862.0,0.0001,2]
[420732056,1776509444796,-405.88825232,0.0001,2]
[420732057,1776509444805,-881.31431603,0.0001,2]
[420732058,1776509444815,-921.17491533,0.0001,2]
[420732059,1776509444824,-799.21378221,0.0001,2]
[420732060,1776509444833,-262.070645,0.0001,2]
[420732061,1776509444843,-151.0,0.0001,2]
[420732062,1776509444852,-151.0,0.0001,2]
[420732063,1776509444862,-254.089672,0.0001,2]
[420732064,1776509444871,-254.089672,0.0001,2]
[420732065,1776509444881,-254.089672,0.0001,2]
[420732066,1776509444890,-254.089672,0.0001,2]
[420732067,1776509444899,-200.0,0.0001,2]
[420732068,1776509444909,-500.0,0.0001,2]
[420732069,1776509444919,-500.0,0.0001,2]
[420732070,1776509444928,-500.0,0.0001,2]
[420732071,1776509444937,-151.0,0.0001,2]
[420732072,1776509444947,-500.0,0.0001,2]
[420732073,1776509444956,-151.0,0.0001,2]
[420732074,1776509444965,-500.0,0.0001,2]
[420732075,1776509444975,-151.0,0.0001,2]
[420732076,1776509444984,-500.0,0.0001,2]
[420732077,1776509444994,-151.0,0.0001,2]
[420732078,1776509445003,-500.0,0.0001,2]
[420732079,1776509445012,-151.0,0.0001,2]
[420732080,1776509445022,-500.0,0.0001,2]
[420732081,1776509445032,-151.0,0.0001,2]
[420732082,1776509445041,-500.0,0.0001,2]
[420732083,1776509445050,-151.0,0.0001,2]
[420732084,1776509445058,-500.0,0.0001,2]
[420732085,1776509445068,-151.0,0.0001,2]
[420732086,1776509445077,-500.0,0.0001,2]
[420732087,1776509445086,-151.0,0.0001,2]
[420732088,1776509445095,-500.0,0.0001,2]
[420732089,1776509445104,-151.0,0.0001,2]
[420732090,1776509445113,-151.0,0.0001,2]
[420732091,1776509445123,-151.0,0.0001,2]
[420732092,1776509445135,-500.0,0.0001,2]
[420732093,1776509445146,-567.31219984,0.0001,2]
[420732094,1776509445156,-151.0,0.0001,2]
[420732095,1776509445167,-151.0,0.0001,2]
[420732096,1776509445177,-369.719989,0.0001,2]
[420732097,1776509445187,-369.719989,0.0001,2]
[420732098,1776509445197,-369.719989,0.0001,2]
[420732099,1776509445206,-369.719989,0.0001,2]
[420732100,1776509445215,-151.0,0.0001,2]
[420732101,1776509445225,-1000.0,0.0001,2]
[420732102,1776509445235,-1000.0,0.0001,2]
[420732103,1776509445245,-1000.0,0.0001,2]
[420732104,1776509445254,-1000.0,0.0001,2]
[420732105,1776509445264,-1000.0,0.0001,2]
[420732106,1776509445274,-1000.0,0.0001,2]
[420732107,1776509445283,-551.39,0.0001,2]
[420732108,1776509445292,-1000.0,0.0001,2]
[420732109,1776509445302,-151.0,0.00010013,2]
[420732110,1776509445311,-500.0,0.00010026,2]
[420732111,1776509445321,-151.0,0.00010026,2]
[420732112,1776509445331,-1421.0,0.00010033,5]
[420732113,1776509445340,-1135.0,0.00010033,5]
[420732114,1776509445349,-433.0,0.0001005,2]
[420732115,1776509445359,-200.0,0.00010079,2]
[420732116,1776509445368,-1428.38747117,0.00010079,2]
[420732117,1776509445377,-209.40437684,0.00010079,2]
[420732118,1776509445387,-771.01748645,0.00010079,2]
[420732119,1776509445397,-181.08010149,0.00010079,2]
[420732120,1776509445407,-209.40437684,0.00010079,2]
[420732121,1776509445417,-290.26104003,0.00010079,2]
[420732122,1776509445426,-500.0,0.00010081,2]
[420732123,1776509445435,-151.0,0.00010081,2]
[420732124,1776509445445,-500.0,0.00010136,2]
[420732125,1776509445454,-151.0,0.00010136,2]
[420732126,1776509445464,-573.69505446,0.00010167,2]
[420732127,1776509445473,-250.0,0.0001021,2]
[420732128,1776509445483,-5531.0,0.000103,3]
[420732129,1776509445492,-1600.0,0.00010315,2]
[420732130,1776509445501,-7078.3068385,0.00010361,2]
[420732131,1776509445511,-136298.34778977,0.00010396,2]
[420732132,1776509445530,-8120.96764155,0.00010396,2]
[420732133,1776509445545,-422.2124784,0.00010396,2]
[420732136,1776509445841,-312.25796975,8.696e-05,2]
[420732137,1776509445897,-187.74203025,8.696e-05,2]
[420732138,1776509445908,-500.0,8.696e-05,2]
[420732139,1776509445919,-176.51537409,9.811e-05,2]
[420732140,1776509445930,-530.64870581,9.811e-05,2]
[420732141,1776509445953,-3071.8359201,9.811e-05,2]
[420732142,1776509445963,-230.71461602,0.00010396,2]
[420732143,1776509446301,-439.13846193,0.0001,2]
[420732144,1776509446337,-560.86153807,0.0001,2]
[420732145,1776509446347,-18198.96514679,0.00010396,2]
[420732146,1776509446363,-304.8,0.00010396,2]
[420732147,1776509446387,-37348.51770747,0.00010396,2]
[420732148,1776509679462,-150.0,0.00010351,30]
[420732149,1776509679491,-150.0,0.00010983,30]
[420732150,1776509679517,-150.0,0.00011614,30]
[420732151,1776509679543,-418.0,0.00013425,30]
[420732152,1776509679564,-132.0,0.00013425,30]
[420732153,1776509709862,-187.34,0.00012246,30]
[420732154,1776509709886,-234.17,0.00012878,30]
[420732155,1776509709910,-78.49,0.00013425,30]
[420732163,1776510090124,150.0,9.489e-05,30]
[420732171,1776510390099,150.0,9.481e-05,30]
[420732172,1776510464601,150.0,9.469e-05,30]
[420732175,1776510632008,-150.0,7.718e-05,2]
[420732176,1776510632019,-150.0,7.718e-05,2]
[420732177,1776510632029,-150.0,7.718e-05,2]
[420732178,1776510632039,-150.0,7.718e-05,2]
[420732179,1776510632049,-150.0,7.718e-05,2]
[420732180,1776510632058,-382.05166137,7.718e-05,2]
[420732181,1776510632068,-251.0,7.718e-05,2]
[420732182,1776510632079,-150.0,7.784e-05,2]
[420732183,1776510632088,-150.0,7.85e-05,2]
[420732184,1776510632098,-150.0,7.916e-05,2]
[420732185,1776510632108,-150.0,7.982e-05,2]
[420732186,1776510632118,-150.0,8.048e-05,2]
[420732187,1776510632128,-150.0,8.114e-05,2]
[420732188,1776510632137,-964.21077214,8.178e-05,2]
[420732189,1776510632158,-874.25145386,8.178e-05,2]
[420732190,1776510632168,-150.0,8.18e-05,2]
[420732191,1776510632179,-150.0,8.246e-05,2]
[420732192,1776510632188,-203.92273135,8.31e-05,2]
[420732193,1776510632200,-1796.07726865,8.31e-05,2]
[420732194,1776510632210,-150.0,8.311e-05,2]
[420732195,1776510632221,-500.0,8.364e-05,2]
[420732196,1776510632231,-150.0,8.377e-05,2]
[420732197,1776510632241,-500.0,8.38e-05,2]
[420732198,1776510632251,-1200.0,8.424e-05,2]
[420732199,1776510632261,-150.09,8.425e-05,2]
[420732200,1776510632271,-2148.587,8.425e-05,2]
[420732201,1776510632281,-150.0,8.443e-05,2]
[420732202,1776510632291,-5000.0,8.49e-05,2]
[420732203,1776510632300,-300.0,8.496e-05,2]
[420732204,1776510632310,-300.0,8.496e-05,2]
[420732205,1776510632319,-453.1571,8.497e-05,2]
[420732206,1776510632329,-150.0,8.509e-05,2]
[420732207,1776510632338,-300.0,8.572e-05,2]
[420732208,1776510632348,-150.0,8.575e-05,2]
[420732209,1776510632357,-150.0,8.575e-05,2]
[420732210,1776510632367,-277.32896628,8.575e-05,2]
[420732211,1776510632376,-150.0,8.595e-05,2]
[420732212,1776510632385,-155.0,8.596e-05,2]
[420732214,1776510632395,-250.0,8.596e-05,2]
[420732215,1776510632404,-553.6754939,8.654e-05,2]
[420732216,1776510632414,-200.0,8.7e-05,3]
[420732217,1776510632423,-500.0,8.8e-05,3]
[420732218,1776510632432,-700.0,8.9e-05,3]
[420732219,1776510632441,-1000.0,9e-05,3]
[420732220,1776510632451,-1852.42,9.06e-05,2]
[420732221,1776510632460,-1680.0,9.266e-05,2]
[420732222,1776510632469,-420.0,9.345e-05,2]
[420732223,1776510632478,-2000.0,9.349e-05,2]
[420732224,1776510632488,-159.69,9.365e-05,2]
[420732225,1776510632498,-420.0,9.429e-05,2]
[420732226,1776510632507,-235.92,9.502e-05,2]
[420732227,1776510632518,-1528.66,9.568e-05,2]
[420732228,1776510632527,-201.106365,9.6e-05,7]
[420732229,1776510632536,-578.20924308,9.736e-05,2]
[420732230,1776510632546,-695.39793187,9.736e-05,2]
[420732231,1776510632556,-200.0,9.736e-05,2]
[420732232,1776510632568,-201.93286099,9.736e-05,2]
[420732233,1776510632577,-1308.52882915,9.736e-05,2]
[420732234,1776510632602,-68.89399744,9.736e-05,2]
[420732235,1776510632611,-500.0,9.736e-05,2]
[420732236,1776510632621,-151.0,9.736e-05,2]
[420732237,1776510632631,-201.93286099,9.736e-05,2]
[420732238,1776510632641,-174.61919141,9.736e-05,2]
[420732239,1776510632651,-426.1530893,9.736e-05,2]
[420732240,1776510632663,-317.35461219,9.736e-05,2]
[420732241,1776510632672,-227.34163157,9.736e-05,2]
[420732242,1776510632682,-235.75327194,9.736e-05,2]
[420732243,1776510632691,-244.476143,9.736e-05,2]
[420732244,1776510632701,-253.52176029,9.736e-05,2]
[420732245,1776510632710,-324.18017433,9.736e-05,2]
[420732246,1776510632720,-201.53159052,9.736e-05,2]
[420732247,1776510632729,-279.9045709,9.736e-05,2]
[420732248,1776510632739,-500.0,9.791e-05,2]
[420732249,1776510632748,-151.0,9.791e-05,2]
[420732250,1776510632758,-150.0,9.811e-05,2]
[420732251,1776510632767,-1048.0,9.811e-05,2]
[420732252,1776510632777,-1349.0,9.811e-05,2]
[420732253,1776510632788,-622.0,9.811e-05,2]
[420732254,1776510632798,-1265.0,9.811e-05,2]
[420732255,1776510632807,-979.43,9.811e-05,2]
[420732256,1776510632816,-1219.0,9.811e-05,2]
[420732257,1776510632826,-416.0,9.811e-05,2]
[420732258,1776510632835,-3877.945,9.811e-05,2]
[420732259,1776510632845,-500.0,9.846e-05,2]
[420732260,1776510632855,-151.0,9.846e-05,2]
[420732261,1776510632864,-500.0,9.901e-05,2]
[420732262,1776510632873,-151.0,9.901e-05,2]
[420732263,1776510632883,-500.0,9.956e-05,2]
[420732264,1776510632892,-200.0,0.0001,2]
[420732265,1776510632901,-151.0,0.0001,2]
[420732266,1776510632911,-306.61372233,0.0001,2]
[420732269,1776510638122,-193.38627767,0.0001,2]
[420732270,1776510638131,-151.0,0.0001,2]
[420732271,1776510638141,-238.19174269,0.0001,2]
[420732272,1776510638153,-261.80825731,0.0001,2]
[420732273,1776510638163,-151.0,0.0001,2]
[420732274,1776510638172,-61.35062269,0.0001,2]
[420732275,1776510638183,-438.64937731,0.0001,2]
[420732276,1776510638193,-151.0,0.0001,2]
[420732277,1776510638203,-403.6921461,0.0001,2]
[420732278,1776510638280,-96.3078539,0.0001,2]
[420732279,1776510638289,-151.0,0.0001,2]
[420732280,1776510638300,-500.0,0.0001,2]
[420732281,1776510638311,-151.0,0.0001,2]
[420732282,1776510638321,-500.0,0.0001,2]
[420732283,1776510638332,-151.0,0.0001,2]
[420732284,1776510638343,-500.0,0.0001,2]
[420732285,1776510638353,-151.0,0.0001,2]
[420732286,1776510638362,-500.0,0.0001,2]
[420732287,1776510638372,-151.0,0.0001,2]
[420732288,1776510638382,-500.0,0.0001,2]
[420732289,1776510638391,-448.6921461,0.0001,2]
[420732290,1776510638406,-51.3078539,0.0001,2]
[420732291,1776510638416,-151.0,0.0001,2]
[420732292,1776510638425,-500.0,0.0001,2]
[420732293,1776510638434,-151.0,0.0001,2]
[420732294,1776510638444,-500.0,0.0001,2]
[420732295,1776510638453,-151.0,0.0001,2]
[420732296,1776510638462,-151.0,0.0001,2]
[420732297,1776510638472,-151.0,0.0001,2]
[420732298,1776510638481,-500.0,0.00010011,2]
[420732299,1776510638491,-1106.0,0.00010033,5]
[420732300,1776510638500,-894.0,0.00010033,5]
[420732301,1776510638510,-500.0,0.00010066,2]
[420732303,1776510638519,-500.0,0.00010121,2]
[420732305,1776510638529,-500.0,0.00010176,2]
[420732307,1776510638538,-2351.0,0.00010193,2]
[420732309,1776510638547,-500.0,0.00010231,2]
[420732311,1776510638557,-587.0,0.0001028,2]
[420732313,1776510638566,-200.0,0.00010284,2]
[420732315,1776510638576,-1428.38747117,0.00010284,2]
[420732317,1776510638585,-229.61346512,0.00010284,2]
[420732319,1776510638595,-209.40437684,0.00010284,2]
[420732320,1776510638604,-181.08010149,0.00010284,2]
[420732321,1776510638618,-480.80313096,0.00010284,2]
[420732322,1776510638628,-290.26104003,0.00010284,2]
[420732356,1776510638991,-500.0,0.00010286,2]
[420732357,1776510639033,-1000.0,0.00010296,2]
[420732358,1776510639043,-500.0,0.00010341,2]
[420732359,1776510639053,-9633.7401457,0.00010347,2]
[420732360,1776510639062,-3044.8838782,0.00010347,2]
[420732361,1776510639072,-1931.7918849,0.00010367,2]
[420732362,1776510639082,-47125.72665168,0.00010367,2]
[420732363,1776510639094,-1734.2462144,0.00010367,2]
[420732364,1776510639109,-7906.75379404,0.00010367,2]
[420732365,1776510639120,-825.26934686,0.00010367,2]
[420732387,1776510641508,-152190.00000004,0.00010367,2]
[420732388,1776510641520,-2852.19657638,0.00010367,2]
[420732389,1776510641536,-482.79510806,0.00010367,2]
[420732390,1776510641547,-4926.23470969,0.00010367,2]
[420732393,1776510643129,-1909.66153725,9.811e-05,2]
[420732394,1776510643391,-474.68153305,9.811e-05,2]
[420732395,1776510643405,-2263.57526142,9.811e-05,2]
[420732396,1776510643445,-1381.08166828,9.811e-05,2]
[420732397,1776510643455,-731.60606053,0.00010367,2]
[420732398,1776510643467,-5514.04433623,0.00010367,2]
[420732399,1776510643501,-5642.70196642,0.00010367,2]
[420732403,1776510646214,-35068.7024931,0.00010367,2]
[420732404,1776510646226,-2280.0,0.00010367,2]
[420732405,1776510646238,-374.10000002,0.00010367,2]
[420732406,1776510646249,-444.58999998,0.00010367,2]
[420732407,1776510646322,-136471.40585437,0.00010367,2]
[420732408,1776510646332,-151.0,0.00010367,2]
[420732409,1776510646342,-6332.5890076,0.00010367,2]
[420732410,1776510646352,-152.453803,0.00010367,2]
[420732411,1776510646362,-152.453803,0.00010367,2]
[420732412,1776510646371,-152.453803,0.00010367,2]
[420732413,1776510646381,-152.453803,0.00010367,2]
[420732414,1776510646390,-271.127992,0.00010367,2]
[420732415,1776510646401,-271.127992,0.00010367,2]
[420732416,1776510646412,-271.127992,0.00010367,2]
[420732417,1776510646424,-271.127992,0.00010367,2]
[420732418,1776510646434,-852.0806839,0.00010367,2]
[420732419,1776510646444,-150.0,0.00010372,2]
[420732420,1776510646454,-2000.0,0.00010388,2]
[420732421,1776510646463,-151.0,0.00010393,2]
[420732422,1776510646473,-151.0,0.00010393,2]
[420732423,1776510646482,-166.58524103,0.00010396,2]
[420732424,1776510646492,-307.25494598,0.00010396,2]
[420732425,1776510646502,-500.0,0.00010396,2]
[420732426,1776510646512,-1414.86189173,0.00010486,2]
[420732427,1776510646522,-5531.0,0.000105,5]
[420732428,1776510646532,-200.0,0.00010548,2]
[420732429,1776510646542,-151.0,0.00010548,2]
[420732430,1776510646551,-2000.0,0.0001059,2]
[420732431,1776510646561,-2000.0,0.0001059,2]
[420732432,1776510646570,-5000.0,0.000106,2]
[420732433,1776510646580,-1900.2585736,0.000106,2]
[420732434,1776510646590,-902.79154495,0.000106,2]
[420732435,1776510646599,-200.0,0.00010603,3]
[420732436,1776510646609,-250.0,0.00010603,2]
[420732437,1776510646619,-250.0,0.00010603,2]
[420732438,1776510646628,-313.64,0.00010603,2]
[420732439,1776510646638,-500.0,0.00010685,2]
[420732440,1776510646648,-804.68007178,0.0001069,2]
[420732441,1776510646658,-117789.20628866,0.000107,2]
[420732442,1776510646668,-270.54499817,0.000107,2]
[420732443,1776510646678,-122547.72498866,0.000107,2]
[420732445,1776510646707,-1165.00275632,0.000107,2]
[420732479,1776511832660,-160.58793569,8.327e-05,2]
[420732481,1776511832670,-554.76166431,8.327e-05,2]
[420732483,1776511832681,-693.79085128,8.327e-05,2]
[420732485,1776511832694,-706.7096,8.327e-05,2]
[420732488,1776511832729,-438.57388441,8.327e-05,2]
[420732490,1776511832739,-171.32458999,8.396e-05,2]
[420732492,1776511832750,-250.7070206,8.396e-05,2]
[420732495,1776511832765,-1276.38588941,8.396e-05,2]
[420732497,1776511832775,-186.97946643,8.396e-05,2]
[420732498,1776511832784,-1200.0,8.396e-05,2]
[420732499,1776511832794,-300.0,8.396e-05,2]
[420732500,1776511832803,-150.0,8.472e-05,2]
[420732501,1776511832813,-577.11497904,8.473e-05,2]
[420732502,1776511832823,-163.96985499,8.473e-05,2]
[420732503,1776511832832,-505.21174302,8.473e-05,2]
[420732504,1776511832842,-500.0,8.473e-05,2]
[420732505,1776511832852,-366.26885773,8.473e-05,2]
[420732506,1776511832860,-610.3510203,8.473e-05,2]